[Event "Goteborg Open 2024"]
[Site "Goteborgs Schackcentrum, Vegatan 20, Gothenburg, Sweden"]
[Date "2024.08.02"]
[Round "3.4"]
[White "Andersson, Stig"]
[Black "Green, David"]
[Result "1/2-1/2"]
[TimeControl "15 minutes + 5 seconds per move from move one (Round 1 - 4) / 90 minutes + 30 seconds per move from move one (Round 5 - 8)"]
[WhiteFideId "1731971"]
[BlackFideId "1769332"]
[WhiteElo "1889"]
[BlackElo "1946"]

1. e4 {[%clk 00:15:06]} {[%emt 00:00:04]} c5 {[%clk 00:15:08]} {[%emt
00:00:03]} 2. Nf3 {[%clk 00:15:07]} {[%emt 00:00:04]} e6 {[%clk 00:15:10]}
{[%emt 00:00:04]} 3. c3 {[%clk 00:15:02]} {[%emt 00:00:10]} Nf6 {[%clk
00:14:57]} {[%emt 00:00:19]} 4. Qc2 {[%clk 00:15:05]} Nc6 {[%clk 00:13:39]}
{[%emt 00:01:23]} 5. Be2 {[%clk 00:15:04]} {[%emt 00:00:05]} d5 {[%clk
00:13:01]} {[%emt 00:00:43]} 6. d3 {[%clk 00:14:38]} {[%emt 00:00:31]} Be7
{[%clk 00:12:34]} {[%emt 00:00:32]} 7. O-O {[%clk 00:14:37]} {[%emt 00:00:06]}
O-O {[%clk 00:12:27]} {[%emt 00:00:13]} 8. Bf4 {[%clk 00:14:20]} {[%emt
00:00:22]} b6 {[%clk 00:11:10]} {[%emt 00:01:22]} 9. Na3 {[%clk 00:13:18]}
{[%emt 00:01:06]} Ba6 {[%clk 00:09:45]} {[%emt 00:01:30]} 10. e5 {[%clk
00:12:54]} {[%emt 00:00:29]} Nd7 {[%clk 00:09:03]} {[%emt 00:00:48]} 11. Rfe1
{[%clk 00:12:09]} {[%emt 00:00:50]} Rc8 {[%clk 00:07:44]} {[%emt 00:01:24]} 12.
Qd2 {[%clk 00:12:08]} {[%emt 00:00:06]} Qc7 {[%clk 00:06:47]} {[%emt 00:01:03]}
13. Bf1 {[%clk 00:12:08]} {[%emt 00:00:03]} Bd8 {[%clk 00:04:02]} {[%emt
00:02:51]} 14. Rac1 {[%clk 00:11:57]} {[%emt 00:00:16]} Qb8 {[%clk 00:04:01]}
{[%emt 00:00:06]} 15. Nc2 {[%clk 00:11:46]} {[%emt 00:00:16]} Bc7 {[%clk
00:03:45]} {[%emt 00:00:21]} 16. d4 {[%clk 00:11:03]} {[%emt 00:00:48]} Bxf1
{[%clk 00:03:36]} {[%emt 00:00:15]} 17. Kxf1 {[%clk 00:10:47]} {[%emt
00:00:20]} f6 {[%clk 00:02:46]} {[%emt 00:00:55]} 18. Bg3 {[%clk 00:10:46]}
{[%emt 00:00:06]} fxe5 {[%clk 00:02:37]} {[%emt 00:00:14]} 19. dxe5 {[%clk
00:10:17]} {[%emt 00:00:34]} Ndxe5 {[%clk 00:01:55]} {[%emt 00:00:46]} 20. Nxe5
{[%clk 00:10:08]} {[%emt 00:00:15]} Bxe5 {[%clk 00:01:05]} {[%emt 00:00:55]} 21.
Kg1 {[%clk 00:09:21]} {[%emt 00:00:52]} Bxg3 {[%clk 00:00:57]} {[%emt
00:00:13]} 22. hxg3 {[%clk 00:09:20]} {[%emt 00:00:07]} Qd6 {[%clk 00:00:28]}
{[%emt 00:00:33]} 23. Re2 {[%clk 00:09:13]} {[%emt 00:00:12]} Rf6 {[%clk
00:00:07]} {[%emt 00:00:26]} 24. Rce1 {[%clk 00:09:14]} {[%emt 00:00:04]} Rcf8
{[%clk 00:00:07]} {[%emt 00:00:07]} 25. b3 {[%clk 00:07:28]} {[%emt 00:01:49]}
d4 {[%clk 00:00:08]} {[%emt 00:00:04]} 26. Qd3 {[%clk 00:06:32]} {[%emt
00:01:00]} Re8 {[%clk 00:00:09]} {[%emt 00:00:05]} 27. Re4 {[%clk 00:06:07]}
{[%emt 00:00:30]} Rd8 {[%clk 00:00:09]} {[%emt 00:00:06]} 28. cxd4 {[%clk
00:05:47]} {[%emt 00:00:24]} Nxd4 {[%clk 00:00:08]} {[%emt 00:00:06]} 29. Nxd4
{[%clk 00:05:46]} {[%emt 00:00:06]} cxd4 {[%clk 00:00:10]} {[%emt 00:00:03]} 30.
Qc4 {[%clk 00:04:15]} {[%emt 00:01:37]} Kf7 {[%clk 00:00:08]} {[%emt 00:00:07]}
31. Rd1 {[%clk 00:04:13]} {[%emt 00:00:05]} Qc5 {[%clk 00:00:07]} {[%emt
00:00:07]} 32. Rexd4 {[%clk 00:03:56]} {[%emt 00:00:23]} Qxc4 {[%clk 00:00:09]}
{[%emt 00:00:02]} 33. bxc4 {[%clk 00:03:58]} {[%emt 00:00:03]} Rxd4 {[%clk
00:00:10]} {[%emt 00:00:05]} 34. Rxd4 {[%clk 00:04:01]} {[%emt 00:00:02]} Ke7
{[%clk 00:00:14]} 35. Kf1 {[%clk 00:03:53]} {[%emt 00:00:13]} Rf5 {[%clk
00:00:16]} {[%emt 00:00:03]} 36. Ke2 {[%clk 00:03:53]} {[%emt 00:00:04]} Ra5
{[%clk 00:00:15]} {[%emt 00:00:06]} 37. Rd2 {[%clk 00:03:56]} {[%emt 00:00:03]}
Ra4 {[%clk 00:00:07]} {[%emt 00:00:13]} 38. Kd3 {[%clk 00:03:44]} {[%emt
00:00:16]} Kd6 {[%emt 00:00:08]} 39. Kc3+ {[%clk 00:03:44]} {[%emt 00:00:04]}
Kc6 {[%clk 00:00:07]} {[%emt 00:00:05]} 40. Re2 {[%clk 00:03:36]} {[%emt
00:00:13]} Kd6 {[%emt 00:00:03]} 41. Kb3 {[%clk 00:03:34]} {[%emt 00:00:06]}
Ra5 {[%clk 00:00:11]} {[%emt 00:00:03]} 42. Rd2+ {[%clk 00:02:47]} {[%emt
00:00:53]} Kc6 {[%clk 00:00:14]} {[%emt 00:00:02]} 43. Rd8 {[%clk 00:02:42]}
{[%emt 00:00:10]} Rf5 {[%clk 00:00:17]} {[%emt 00:00:02]} 44. f3 {[%clk
00:02:45]} {[%emt 00:00:01]} Re5 {[%clk 00:00:07]} {[%emt 00:00:14]} 45. Rd2
{[%clk 00:02:18]} {[%emt 00:00:32]} Re3+ {[%clk 00:00:09]} {[%emt 00:00:04]} 46.
Kc2 {[%clk 00:02:12]} {[%emt 00:00:10]} Ra3 {[%clk 00:00:07]} {[%emt 00:00:07]}
47. Kb2 {[%clk 00:02:14]} {[%emt 00:00:04]} Re3 {[%clk 00:00:09]} {[%emt
00:00:03]} 48. g4 {[%emt 00:00:11]} a5 {[%clk 00:00:09]} {[%emt 00:00:01]} 49.
Rf2 {[%clk 00:01:33]} {[%emt 00:00:42]} e5 {[%clk 00:00:10]} {[%emt 00:00:05]}
50. g5 {[%clk 00:01:28]} {[%emt 00:00:10]} Kc5 {[%clk 00:00:10]} {[%emt
00:00:05]} 51. g4 {[%clk 00:01:21]} {[%emt 00:00:12]} Kxc4 {[%clk 00:00:07]}
{[%emt 00:00:08]} 52. f4 {[%clk 00:01:24]} {[%emt 00:00:02]} exf4 {[%clk
00:00:07]} {[%emt 00:00:05]} 53. Rxf4+ {[%clk 00:01:28]} {[%emt 00:00:01]} Kd5
{[%clk 00:00:09]} {[%emt 00:00:05]} 54. Rf7 {[%clk 00:01:30]} {[%emt 00:00:01]}
Re2+ {[%clk 00:00:08]} {[%emt 00:00:06]} 55. Kb3 {[%clk 00:01:33]} Re3+ {[%emt
00:00:02]} 56. Kc2 {[%clk 00:01:36]} {[%emt 00:00:01]} Re2+ {[%clk 00:00:09]}
{[%emt 00:00:09]} 57. Kb3 {[%clk 00:01:40]} {[%emt 00:00:02]} Rg2 {[%clk
00:00:09]} {[%emt 00:00:05]} 58. Rxg7 {[%clk 00:01:41]} {[%emt 00:00:03]} Rxg4
{[%clk 00:00:12]} {[%emt 00:00:02]} 59. Rxh7 {[%clk 00:01:16]} {[%emt
00:00:30]} Rxg5 {[%clk 00:00:13]} {[%emt 00:00:04]} 60. Rc7 {[%clk 00:01:03]}
{[%emt 00:00:18]} Rg3+ {[%clk 00:00:15]} {[%emt 00:00:04]} 61. Ka4 {[%clk
00:00:59]} {[%emt 00:00:07]} Rg4+ {[%clk 00:00:16]} {[%emt 00:00:02]} 62. Ka3
{[%clk 00:00:59]} {[%emt 00:00:08]} Rc4 {[%clk 00:00:16]} {[%emt 00:00:04]} 63.
Rb7 {[%clk 00:00:52]} {[%emt 00:00:13]} Kc5 {[%clk 00:00:12]} {[%emt 00:00:10]}
64. Kb3 {[%clk 00:00:53]} {[%emt 00:00:04]} Rb4+ {[%clk 00:00:12]} {[%emt
00:00:06]} 65. Ka3 {[%clk 00:00:41]} {[%emt 00:00:17]} Rb1 {[%clk 00:00:15]}
{[%emt 00:00:01]} 66. Rb8 {[%clk 00:00:33]} {[%emt 00:00:13]} b5 {[%clk
00:00:08]} {[%emt 00:00:12]} 67. Rc8+ {[%clk 00:00:33]} {[%emt 00:00:05]} Kb6
{[%clk 00:00:13]} 68. Rb8+ {[%clk 00:00:36]} {[%emt 00:00:02]} Kc5 {[%clk
00:00:17]} 69. Rc8+ {[%clk 00:00:40]} {[%emt 00:00:01]} Kd4 {[%clk 00:00:21]}
{[%emt 00:00:02]} 70. Rd8+ {[%clk 00:00:44]} {[%emt 00:00:01]} Kc5 {[%clk
00:00:20]} {[%emt 00:00:07]} 71. Rc8+ {[%clk 00:00:48]} {[%emt 00:00:01]} Kd6
{[%clk 00:00:23]} {[%emt 00:00:01]} 72. Rd8+ {[%clk 00:00:51]} {[%emt
00:00:02]} Kc7 {[%clk 00:00:27]} {[%emt 00:00:01]} 73. Rh8 {[%clk 00:00:41]}
{[%emt 00:00:14]} a4 {[%clk 00:00:10]} {[%emt 00:00:24]} 74. Rh7+ {[%clk
00:00:34]} {[%emt 00:00:11]} Kb6 {[%clk 00:00:13]} {[%emt 00:00:02]} 75. Rh8
{[%clk 00:00:32]} {[%emt 00:00:07]} Kc5 {[%clk 00:00:08]} {[%emt 00:00:10]} 76.
Rc8+ {[%clk 00:00:34]} {[%emt 00:00:02]} Kb6 {[%clk 00:00:13]} {[%emt
00:00:01]} 77. Rb8+ {[%clk 00:00:38]} {[%emt 00:00:02]} Ka5 {[%clk 00:00:08]}
{[%emt 00:00:08]} 78. Rxb5+ {[%clk 00:00:22]} {[%emt 00:00:22]} Kxb5 {[%clk
00:00:06]} {[%emt 00:00:08]} 1/2-1/2

[Event "Goteborg Open 2024"]
[Site "Goteborgs Schackcentrum, Vegatan 20, Gothenburg, Sweden"]
[Date "2024.08.02"]
[Round "3.5"]
[White "Helin, Mikael"]
[Black "Eriksson, Kristian"]
[Result "0-1"]
[TimeControl "15 minutes + 5 seconds per move from move one (Round 1 - 4) / 90 minutes + 30 seconds per move from move one (Round 5 - 8)"]
[WhiteTitle "CM"]
[WhiteFideId "1703838"]
[BlackFideId "1705172"]
[WhiteElo "1937"]
[BlackElo "2064"]

1. c4 {[%clk 00:15:07]} {[%emt 00:00:04]} e6 {[%clk 00:15:02]} {[%emt
00:00:08]} 2. Nc3 {[%clk 00:15:02]} {[%emt 00:00:10]} b6 {[%clk 00:14:56]}
{[%emt 00:00:11]} 3. e4 {[%clk 00:14:44]} {[%emt 00:00:23]} Bb7 {[%clk
00:14:55]} {[%emt 00:00:06]} 4. g3 {[%clk 00:14:36]} {[%emt 00:00:13]} Bb4
{[%clk 00:14:35]} {[%emt 00:00:25]} 5. Nge2 {[%clk 00:13:55]} {[%emt 00:00:46]}
f5 {[%clk 00:14:09]} {[%emt 00:00:31]} 6. f3 {[%clk 00:13:58]} {[%emt
00:00:01]} Nf6 {[%clk 00:13:19]} {[%emt 00:00:56]} 7. Bg2 {[%clk 00:14:00]}
{[%emt 00:00:02]} fxe4 {[%clk 00:12:42]} {[%emt 00:00:43]} 8. fxe4 {[%clk
00:13:33]} {[%emt 00:00:33]} O-O {[%clk 00:12:19]} {[%emt 00:00:26]} 9. O-O
{[%clk 00:13:27]} {[%emt 00:00:12]} Bxc3 {[%clk 00:11:11]} {[%emt 00:01:13]} 10.
Nxc3 {[%clk 00:13:28]} {[%emt 00:00:04]} d6 {[%clk 00:11:02]} {[%emt 00:00:13]}
11. d4 {[%clk 00:12:25]} {[%emt 00:01:09]} Nbd7 {[%clk 00:10:52]} {[%emt
00:00:14]} 12. b4 {[%clk 00:11:21]} {[%emt 00:01:10]} a5 {[%clk 00:10:39]}
{[%emt 00:00:18]} 13. b5 {[%clk 00:10:35]} {[%emt 00:00:51]} Qe8 {[%clk
00:10:30]} {[%emt 00:00:14]} 14. Ba3 {[%clk 00:09:15]} {[%emt 00:01:26]} Qg6
{[%clk 00:10:07]} {[%emt 00:00:26]} 15. e5 {[%clk 00:09:03]} {[%emt 00:00:18]}
Bxg2 {[%clk 00:10:04]} {[%emt 00:00:08]} 16. Kxg2 {[%clk 00:07:40]} {[%emt
00:01:26]} Ng4 {[%clk 00:09:51]} {[%emt 00:00:20]} 17. Qd2 {[%clk 00:07:08]}
{[%emt 00:00:37]} Qc2 {[%clk 00:07:32]} {[%emt 00:02:24]} 18. Qxc2 {[%clk
00:03:51]} {[%emt 00:03:23]} Ne3+ {[%clk 00:07:32]} {[%emt 00:00:03]} 19. Kh3
{[%clk 00:03:44]} {[%emt 00:00:13]} Nxc2 {[%clk 00:07:30]} {[%emt 00:00:06]} 20.
exd6 {[%clk 00:03:06]} {[%emt 00:00:44]} Nxa3 {[%clk 00:06:59]} {[%emt
00:00:36]} 21. c5 {[%clk 00:02:24]} {[%emt 00:00:47]} cxd6 {[%clk 00:05:46]}
{[%emt 00:01:18]} 22. c6 {[%clk 00:02:12]} {[%emt 00:00:17]} Nf6 {[%clk
00:05:39]} {[%emt 00:00:11]} 23. g4 {[%clk 00:01:50]} {[%emt 00:00:29]} Nd5
{[%clk 00:05:24]} {[%emt 00:00:20]} 24. Ne4 {[%clk 00:01:31]} {[%emt 00:00:23]}
Nxb5 {[%clk 00:05:01]} {[%emt 00:00:28]} 25. a4 {[%clk 00:01:35]} {[%emt
00:00:02]} Nxd4 {[%clk 00:04:49]} {[%emt 00:00:16]} 26. Rac1 {[%clk 00:01:21]}
{[%emt 00:00:17]} Rxf1 {[%clk 00:04:24]} {[%emt 00:00:32]} 27. Rxf1 {[%clk
00:01:21]} {[%emt 00:00:04]} Nxc6 {[%clk 00:04:23]} {[%emt 00:00:07]} 28. Nxd6
{[%clk 00:01:24]} {[%emt 00:00:02]} Rd8 {[%clk 00:03:04]} {[%emt 00:01:22]} 29.
Nc4 {[%clk 00:01:15]} {[%emt 00:00:16]} Rf8 {[%clk 00:03:00]} {[%emt 00:00:09]}
30. Re1 {[%clk 00:00:58]} {[%emt 00:00:21]} Rf4 {[%clk 00:02:19]} {[%emt
00:00:45]} 31. Ne5 {[%clk 00:00:27]} {[%emt 00:00:38]} Nxe5 {[%clk 00:02:15]}
{[%emt 00:00:09]} 32. Rxe5 {[%clk 00:00:31]} {[%emt 00:00:01]} Kf7 {[%clk
00:02:12]} {[%emt 00:00:08]} 33. Kg3 {[%clk 00:00:25]} {[%emt 00:00:10]} Rxa4
{[%clk 00:02:13]} {[%emt 00:00:05]} 34. h4 {[%clk 00:00:27]} {[%emt 00:00:02]}
Ra3+ {[%clk 00:02:12]} {[%emt 00:00:06]} 35. Kg2 {[%clk 00:00:26]} {[%emt
00:00:05]} a4 {[%clk 00:02:09]} {[%emt 00:00:10]} 36. Re4 {[%clk 00:00:26]}
{[%emt 00:00:05]} b5 {[%clk 00:02:05]} {[%emt 00:00:10]} 37. g5 {[%clk
00:00:22]} {[%emt 00:00:09]} Re3 {[%clk 00:01:58]} {[%emt 00:00:10]} 38. Rd4
{[%clk 00:00:22]} {[%emt 00:00:08]} a3 {[%clk 00:01:57]} {[%emt 00:00:04]} 39.
Rd2 {[%clk 00:00:23]} {[%emt 00:00:03]} Re2+ {[%clk 00:01:57]} {[%emt
00:00:06]} 0-1

[Event "Goteborg Open 2024"]
[Site "Goteborgs Schackcentrum, Vegatan 20, Gothenburg, Sweden"]
[Date "2024.08.02"]
[Round "3.6"]
[White "Borin, Jesper"]
[Black "Karlsson, Stefan"]
[Result "1-0"]
[TimeControl "15 minutes + 5 seconds per move from move one (Round 1 - 4) / 90 minutes + 30 seconds per move from move one (Round 5 - 8)"]
[WhiteFideId "1771337"]
[BlackFideId "1771183"]
[WhiteElo "1905"]
[BlackElo "2042"]

1. e4 {[%clk 00:15:04]} {[%emt 00:00:05]} c5 {[%clk 00:15:08]} {[%emt
00:00:03]} 2. Nf3 {[%clk 00:15:07]} {[%emt 00:00:03]} Nc6 {[%clk 00:15:09]}
{[%emt 00:00:03]} 3. Bb5 {[%clk 00:15:07]} {[%emt 00:00:06]} Nf6 {[%clk
00:15:12]} {[%emt 00:00:01]} 4. Nc3 {[%clk 00:14:54]} {[%emt 00:00:18]} g6
{[%clk 00:15:16]} {[%emt 00:00:01]} 5. O-O {[%clk 00:14:53]} {[%emt 00:00:06]}
Bg7 {[%clk 00:15:14]} {[%emt 00:00:07]} 6. h3 {[%clk 00:14:30]} {[%emt
00:00:29]} O-O {[%clk 00:15:10]} {[%emt 00:00:08]} 7. e5 {[%clk 00:13:58]}
{[%emt 00:00:37]} Ne8 {[%clk 00:14:42]} {[%emt 00:00:33]} 8. Re1 {[%clk
00:13:58]} {[%emt 00:00:05]} Nd4 {[%clk 00:14:24]} {[%emt 00:00:22]} 9. Bc4
{[%clk 00:13:22]} {[%emt 00:00:41]} Qc7 {[%clk 00:13:05]} {[%emt 00:01:25]} 10.
Nd5 {[%clk 00:13:10]} {[%emt 00:00:17]} Qd8 {[%clk 00:13:09]} {[%emt 00:00:01]}
11. c3 {[%clk 00:12:55]} {[%emt 00:00:19]} Nxf3+ {[%clk 00:12:39]} {[%emt
00:00:36]} 12. Qxf3 {[%clk 00:12:59]} e6 {[%clk 00:12:17]} {[%emt 00:00:27]} 13.
Nf4 {[%clk 00:12:21]} {[%emt 00:00:42]} d5 {[%clk 00:11:14]} {[%emt 00:01:08]}
14. Bf1 {[%clk 00:11:02]} {[%emt 00:01:25]} Qa5 {[%clk 00:07:48]} {[%emt
00:03:30]} 15. h4 {[%clk 00:09:06]} {[%emt 00:02:01]} f6 {[%clk 00:06:40]}
{[%emt 00:01:13]} 16. exf6 {[%clk 00:08:22]} {[%emt 00:00:49]} Rxf6 {[%clk
00:04:23]} {[%emt 00:02:23]} 17. Qg3 {[%clk 00:07:44]} {[%emt 00:00:43]} Bh6
{[%clk 00:01:23]} {[%emt 00:03:03]} 18. Nxd5 {[%clk 00:07:35]} {[%emt
00:00:15]} Rf7 {[%clk 00:01:08]} {[%emt 00:00:20]} 19. Ne3 {[%clk 00:07:15]}
{[%emt 00:00:26]} Bf4 {[%clk 00:01:06]} {[%emt 00:00:06]} 20. Qh3 {[%clk
00:06:41]} {[%emt 00:00:39]} e5 {[%clk 00:01:04]} {[%emt 00:00:08]} 21. Qh1
{[%clk 00:05:23]} {[%emt 00:01:22]} b5 {[%clk 00:00:13]} {[%emt 00:00:56]} 22.
g3 {[%clk 00:05:15]} {[%emt 00:00:13]} Bb7 {[%clk 00:00:17]} {[%emt 00:00:01]}
23. Bg2 {[%clk 00:05:18]} {[%emt 00:00:02]} Bxe3 {[%clk 00:00:07]} {[%emt
00:00:14]} 24. dxe3 {[%clk 00:04:36]} {[%emt 00:00:48]} Bxg2 {[%clk 00:00:11]}
{[%emt 00:00:01]} 25. Qxg2 {[%clk 00:04:40]} {[%emt 00:00:01]} Nc7 {[%clk
00:00:09]} {[%emt 00:00:07]} 26. Qc6 {[%clk 00:04:14]} {[%emt 00:00:32]} Qb6
{[%clk 00:00:07]} {[%emt 00:00:06]} 27. Qxb6 {[%clk 00:03:50]} {[%emt
00:00:31]} axb6 {[%clk 00:00:11]} 28. e4 {[%clk 00:03:46]} {[%emt 00:00:09]}
Raf8 {[%clk 00:00:14]} {[%emt 00:00:02]} 29. Be3 {[%clk 00:03:49]} Ne8 {[%clk
00:00:06]} {[%emt 00:00:13]} 30. b4 {[%clk 00:03:47]} {[%emt 00:00:08]} cxb4
{[%clk 00:00:06]} {[%emt 00:00:04]} 31. cxb4 {[%clk 00:03:51]} {[%emt
00:00:02]} Nd6 {[%clk 00:00:09]} {[%emt 00:00:01]} 32. Bxb6 {[%clk 00:03:50]}
{[%emt 00:00:06]} Nc4 {[%clk 00:00:08]} {[%emt 00:00:06]} 33. Bc5 {[%clk
00:03:54]} {[%emt 00:00:01]} Rd8 {[%clk 00:00:12]} {[%emt 00:00:02]} 34. Red1
{[%clk 00:03:43]} {[%emt 00:00:15]} Nd2 {[%clk 00:00:16]} {[%emt 00:00:01]} 35.
Be3 {[%clk 00:03:32]} {[%emt 00:00:16]} Rfd7 {[%clk 00:00:08]} {[%emt
00:00:14]} 36. Rxd2 {[%clk 00:01:39]} {[%emt 00:01:58]} Rxd2 {[%clk 00:00:11]}
{[%emt 00:00:01]} 37. Bxd2 {[%clk 00:01:42]} {[%emt 00:00:02]} Rxd2 {[%clk
00:00:15]} {[%emt 00:00:01]} 38. a4 {[%clk 00:01:32]} {[%emt 00:00:16]} bxa4
{[%clk 00:00:20]} 39. Rxa4 {[%clk 00:01:35]} {[%emt 00:00:02]} Rd4 {[%clk
00:00:09]} {[%emt 00:00:14]} 40. f3 {[%clk 00:01:29]} {[%emt 00:00:12]} Rd2
{[%clk 00:00:07]} {[%emt 00:00:06]} 41. Ra5 {[%clk 00:01:22]} {[%emt 00:00:12]}
Rb2 {[%clk 00:00:07]} {[%emt 00:00:06]} 42. Rxe5 {[%clk 00:01:12]} {[%emt
00:00:13]} Rxb4 {[%clk 00:00:10]} {[%emt 00:00:04]} 43. Kf2 {[%clk 00:01:12]}
{[%emt 00:00:05]} Rb3 {[%clk 00:00:00]} {[%emt 00:00:11]} 1-0

[Event "Goteborg Open 2024"]
[Site "Goteborgs Schackcentrum, Vegatan 20, Gothenburg, Sweden"]
[Date "2024.08.02"]
[Round "3.7"]
[White "Ottgard, Andreas"]
[Black "Kring, Stephan"]
[Result "0-1"]
[TimeControl "15 minutes + 5 seconds per move from move one (Round 1 - 4) / 90 minutes + 30 seconds per move from move one (Round 5 - 8)"]
[WhiteFideId "1730592"]
[BlackFideId "1711687"]
[WhiteElo "1900"]
[BlackElo "2057"]

1. c4 {[%clk 00:15:08]} {[%emt 00:00:01]} Nf6 {[%clk 00:15:08]} {[%emt
00:00:03]} 2. g3 {[%clk 00:15:12]} {[%emt 00:00:01]} g6 {[%clk 00:15:09]}
{[%emt 00:00:04]} 3. Bg2 {[%clk 00:15:15]} {[%emt 00:00:01]} Bg7 {[%clk
00:15:13]} {[%emt 00:00:01]} 4. Nc3 {[%clk 00:15:19]} {[%emt 00:00:02]} O-O
{[%clk 00:15:15]} {[%emt 00:00:02]} 5. e4 {[%clk 00:15:22]} {[%emt 00:00:01]}
d6 {[%clk 00:15:18]} {[%emt 00:00:02]} 6. Nge2 {[%clk 00:15:25]} {[%emt
00:00:02]} Nc6 {[%clk 00:15:18]} {[%emt 00:00:05]} 7. O-O {[%clk 00:15:23]}
{[%emt 00:00:06]} e5 {[%clk 00:15:13]} {[%emt 00:00:11]} 8. d3 {[%clk
00:15:21]} {[%emt 00:00:08]} Nd7 {[%clk 00:13:00]} {[%emt 00:02:18]} 9. Be3
{[%clk 00:14:56]} {[%emt 00:00:29]} f5 {[%clk 00:12:38]} {[%emt 00:00:27]} 10.
Qd2 {[%clk 00:14:48]} {[%emt 00:00:14]} Nf6 {[%clk 00:12:06]} {[%emt 00:00:37]}
11. Bh6 {[%clk 00:14:29]} {[%emt 00:00:23]} Be6 {[%clk 00:11:58]} {[%emt
00:00:14]} 12. Bxg7 {[%clk 00:13:30]} {[%emt 00:01:04]} Kxg7 {[%clk 00:12:01]}
{[%emt 00:00:03]} 13. b3 {[%clk 00:13:13]} {[%emt 00:00:20]} fxe4 {[%clk
00:10:30]} {[%emt 00:01:37]} 14. dxe4 {[%clk 00:13:05]} {[%emt 00:00:13]} Qd7
{[%clk 00:10:25]} {[%emt 00:00:09]} 15. f4 {[%clk 00:10:31]} {[%emt 00:02:39]}
Bh3 {[%clk 00:10:18]} {[%emt 00:00:11]} 16. f5 {[%clk 00:10:17]} {[%emt
00:00:20]} Bxg2 {[%clk 00:10:02]} {[%emt 00:00:22]} 17. Kxg2 {[%clk 00:10:13]}
{[%emt 00:00:08]} Ne7 {[%clk 00:09:00]} {[%emt 00:01:07]} 18. h3 {[%clk
00:08:28]} {[%emt 00:01:51]} gxf5 {[%clk 00:08:10]} {[%emt 00:00:55]} 19. exf5
{[%clk 00:08:06]} {[%emt 00:00:27]} d5 {[%clk 00:07:50]} {[%emt 00:00:25]} 20.
cxd5 {[%clk 00:07:22]} {[%emt 00:00:50]} Nexd5 {[%clk 00:07:53]} {[%emt
00:00:01]} 21. Rad1 {[%clk 00:05:41]} {[%emt 00:01:46]} Rad8 {[%clk 00:07:56]}
{[%emt 00:00:01]} 22. Nxd5 {[%clk 00:05:29]} {[%emt 00:00:18]} Nxd5 {[%clk
00:07:55]} {[%emt 00:00:06]} 23. Qg5+ {[%clk 00:04:55]} {[%emt 00:00:39]} Kh8
{[%clk 00:07:58]} {[%emt 00:00:01]} 24. Kh2 {[%clk 00:04:25]} {[%emt 00:00:35]}
c6 {[%clk 00:07:16]} {[%emt 00:00:49]} 25. Nc3 {[%clk 00:03:58]} {[%emt
00:00:31]} Qg7 {[%clk 00:06:08]} {[%emt 00:01:13]} 26. Qc1 {[%clk 00:03:07]}
{[%emt 00:00:55]} Nf6 {[%clk 00:05:32]} {[%emt 00:00:42]} 27. Qe3 {[%clk
00:03:02]} {[%emt 00:00:10]} Qc7 {[%clk 00:05:23]} {[%emt 00:00:14]} 28. Qxa7
{[%clk 00:02:48]} {[%emt 00:00:18]} e4 {[%clk 00:04:42]} {[%emt 00:00:46]} 29.
Qe3 {[%clk 00:02:24]} {[%emt 00:00:29]} Qe5 {[%clk 00:04:46]} {[%emt 00:00:02]}
30. Kg2 {[%clk 00:01:06]} {[%emt 00:01:23]} Nd5 {[%clk 00:03:57]} {[%emt
00:00:54]} 31. Nxd5 {[%clk 00:01:09]} {[%emt 00:00:03]} Rxd5 {[%clk 00:04:01]}
32. Rxd5 {[%clk 00:00:45]} {[%emt 00:00:29]} cxd5 {[%clk 00:04:04]} 33. g4
{[%clk 00:00:44]} {[%emt 00:00:07]} d4 {[%clk 00:04:00]} {[%emt 00:00:09]} 34.
Qf4 {[%clk 00:00:43]} {[%emt 00:00:05]} Qd5 {[%clk 00:04:03]} {[%emt 00:00:02]}
35. f6 {[%clk 00:00:24]} {[%emt 00:00:24]} Kg8 {[%clk 00:04:07]} {[%emt
00:00:02]} 36. g5 {[%clk 00:00:16]} {[%emt 00:00:13]} e3+ {[%clk 00:03:46]}
{[%emt 00:00:26]} 37. Kg3 {[%clk 00:00:18]} {[%emt 00:00:02]} e2 {[%clk
00:03:25]} {[%emt 00:00:27]} 38. Rc1 {[%clk 00:00:07]} {[%emt 00:00:16]} d3
{[%clk 00:03:24]} {[%emt 00:00:06]} 39. Kf2 {[%clk 00:00:06]} {[%emt 00:00:06]}
d2 {[%clk 00:03:19]} {[%emt 00:00:10]} 40. Ra1 {[%clk 00:00:08]} {[%emt
00:00:03]} d1=Q {[%clk 00:03:12]} {[%emt 00:00:12]} 41. Rxd1 {[%clk 00:00:06]}
{[%emt 00:00:07]} exd1=Q {[%clk 00:03:13]} 0-1